[Event "FIN-ch 2019"]
[Site "Helsinki"]
[Date "2019.06.18"]
[Round "9.4"]
[White "Agopov, Mikael"]
[Black "Luukkonen, Tommi"]
[Result "1-0"]
[ECO "B08"]
[WhiteElo "2432"]
[BlackElo "2330"]
[Annotator "NA"]
[PlyCount "65"]
[EventDate "2019.06.10"]
[EventType "swiss"]
[EventCountry "FIN"]
[SourceTitle "playchess.com"]
[Source "ChessBase"]
[SourceQuality "1"]
[TimeControl "40/5400+30:1800+30"]

1. e4 {[%emt 1:30:30]} g6 {[%emt 1:30:30]} 2. d4 {[%emt 0:00:30]} Bg7 {[%emt 0:00:30]} 3. Nc3 {[%emt 0:00:30]} c6 {[%emt 0:00:30]} 4. Nf3 {[%emt 0:00:30]} d6 {[%emt 0:00:30]} 5. Be3 {[%emt 0:00:30]} b5 {[%emt 0:00:30]} 6. Bd3 {[%emt 0:00:30]} Nf6 {[%emt 0:00:30]} 7. h3 {[%emt 0:00:30]} O-O {[%emt 0:00:30]} 8. O-O {[%emt 0:00:30]} Nbd7 {[%emt 0:00:30]} 9. a4 {[%emt 0:00:30]} b4 {[%emt 0:00:30]} 10. Ne2 {[%emt 0:00:30]} e5 {[%emt 0:00:30]} 11. dxe5 {[%emt 0:00:30]} dxe5 {[%emt 0:00:30]} 12. Nc1 {[%emt 0:00:30]} Qe7 {[%emt 0:00:30]} 13. Nb3 {[%emt 0:00:30]} Nh5 {[%emt 0:00:30]} 14. a5 {[%emt 0:00:30]} Rd8 {[%emt 0:00:30]} 15. Qd2 {[%emt 0:00:30]} Nf4 {[%emt 0:00:30]} 16. Rfd1 {[%emt 0:00:30]} Nf8 {[%emt 0:00:30]} 17. Bc5 {[%emt 0:00:30]} Qf6 {[%emt 0:00:30]} 18. Qxb4 {[%emt 0:00:30]} Nxh3+ {[%emt 0:00:30]} 19. Kf1 {[%emt 0:00:30]} Re8 {[%emt 0:00:30]} 20. Bc4 {[%emt 0:00:30]} g5 {[%emt 0:00:30]} 21. Qc3 {[%emt 0:00:30]} Nf4 {[%emt 0:00:30]} 22. g3 {[%emt 0:00:30]} Qh6 {[%emt 0:00:30]} 23. gxf4 {[%emt 0:00:30]} Bh3+ {[%emt 0:00:30]} 24. Ke1 {[%emt 0:00:30]} exf4 {[%emt 0:00:30]} 25. Bd4 {[%emt 0:00:30]} Rxe4+ {[%emt 0:00:30]} 26. Kd2 {[%emt 0:00:30]} Rd8 {[%emt 0:00:30]} 27. Kc1 {[%emt 0:00:30]} Bxd4 {[%emt 0:00:30]} 28. Nfxd4 {[%emt 0:00:30]} Bg4 {[%emt 0:00:30]} 29. f3 {[%emt 0:00:30]} Re3 {[%emt 0:00:30]} 30. Bd3 {[%emt 0:00:30]} Be6 {[%emt 0:00:30]} 31. Nc5 {[%emt 0:00:30]} Re8 {[%emt 0:00:30]} 32. Ra4 {[%emt 0:00:30]} Ng6 {[%emt 0:00:30]} 33. Ndxe6 {[%emt 0:00:30]} 1-0

[Event "FIN-ch 2019"]
[Site "Helsinki"]
[Date "2019.06.18"]
[Round "9.5"]
[White "Lindholm, Jere"]
[Black "Sipila, Vilka"]
[Result "0-1"]
[ECO "B67"]
[WhiteElo "2145"]
[BlackElo "2410"]
[Annotator "NA"]
[PlyCount "72"]
[EventDate "2019.06.10"]
[EventType "swiss"]
[EventCountry "FIN"]
[SourceTitle "playchess.com"]
[Source "ChessBase"]
[SourceQuality "1"]
[TimeControl "40/5400+30:1800+30"]

1. e4 {[%emt 0:00:00]} c5 {[%emt 0:08:27]} 2. Nf3 {[%emt 0:00:00]} d6 {[%emt 0:00:08]} 3. d4 {[%emt 0:00:00]} cxd4 {[%emt 0:00:05]} 4. Nxd4 {[%emt 0:00:00]} Nf6 {[%emt 0:00:04]} 5. Nc3 {[%emt 0:00:03]} Nc6 {[%emt 0:00:15]} 6. Bg5 {[%emt 0:00:12]} e6 {[%emt 0:00:07]} 7. Qd2 {[%emt 0:00:10]} a6 {[%emt 0:00:08]} 8. O-O-O {[%emt 0:00:11]} Bd7 {[%emt 0:00:06]} 9. f4 {[%emt 0:00:10]} b5 {[%emt 0:00:12]} 10. Bxf6 {[%emt 0:00:25]} gxf6 {[%emt 0:00:06]} 11. Nxc6 {[%emt 0:03:46]} Bxc6 {[%emt 0:00:08]} 12. Qe3 {[%emt 0:00:04]} Rc8 {[%emt 0:04:54]} 13. Kb1 {[%emt 0:02:26]} Qc7 {[%emt 0:00:58]} 14. Bd3 {[%emt 0:02:00]} Be7 {[%emt 0:01:21]} 15. f5 {[%emt 0:03:38]} e5 {[%emt 0:07:48]} 16. Qh6 {[%emt 0:03:08]} Qb7 {[%emt 0:07:12]} 17. g4 {[%emt 0:08:36]} a5 {[%emt 0:09:15]} 18. g5 {[%emt 0:11:14]} b4 {[%emt 0:01:28]} 19. Nd5 {[%emt 0:00:51]} Bxd5 {[%emt 0:00:06]} 20. exd5 {[%emt 0:00:03]} fxg5 {[%emt 0:03:27]} 21. Qg7 {[%emt 0:00:08]} Rf8 {[%emt 0:00:17]} 22. f6 {[%emt 0:00:07]} Bd8 {[%emt 0:00:05]} 23. h4 {[%emt 0:00:26]} g4 {[%emt 0:01:33]} 24. Rhg1 {[%emt 0:01:13]} h5 {[%emt 0:02:04]} 25. Bg6 {[%emt 0:03:10]} Qc7 {[%emt 0:12:32]} 26. Bf5 {[%emt 0:01:55]} Rb8 {[%emt 0:00:16]} 27. Bxg4 {[%emt 0:27:50]} hxg4 {[%emt 0:00:33]} 28. h5 {[%emt 0:00:04]} Rc8 {[%emt 0:10:26]} 29. Rc1 {[%emt 0:00:07]} Qc4 {[%emt 0:05:05]} 30. Rxg4 {[%emt 0:07:28]} Qe2 {[%emt 0:00:36]} 31. Rg6 {[%emt 0:00:13]} Bb6 {[%emt 0:05:56]} 32. h6 {[%emt 0:02:49]} Kd7 {[%emt 0:00:13]} 33. h7 {[%emt 0:01:11]} Kc7 {[%emt 0:00:12]} 34. h8=Q {[%emt 0:19:30]} Rxh8 {[%emt 0:00:38]} 35. Qxf7+ {[%emt 0:00:05]} Kb8 {[%emt 0:00:03]} 36. Rg7 {[%emt 0:00:47]} Qxc2+ {[%emt 0:00:19]} 0-1

[Event "FIN-ch 2019"]
[Site "Helsinki"]
[Date "2019.06.18"]
[Round "9.6"]
[White "Ronka, Erik"]
[Black "Norri, Joose"]
[Result "1-0"]
[ECO "B05"]
[WhiteElo "2270"]
[BlackElo "2271"]
[Annotator "NA"]
[PlyCount "37"]
[EventDate "2019.06.10"]
[EventType "swiss"]
[EventCountry "FIN"]
[SourceTitle "playchess.com"]
[Source "ChessBase"]
[SourceQuality "1"]
[TimeControl "40/5400+30:1800+30"]

1. e4 {[%emt 1:30:30]} Nf6 {[%emt 1:30:30]} 2. e5 {[%emt 0:00:30]} Nd5 {[%emt 0:00:30]} 3. d4 {[%emt 0:00:30]} d6 {[%emt 0:00:30]} 4. Nf3 {[%emt 0:00:30]} Bg4 {[%emt 0:00:30]} 5. Be2 {[%emt 0:00:30]} e6 {[%emt 0:00:30]} 6. h3 {[%emt 0:00:30]} Bxf3 {[%emt 0:00:30]} 7. Bxf3 {[%emt 0:00:30]} dxe5 {[%emt 0:00:30]} 8. c4 {[%emt 0:00:30]} Nb6 {[%emt 0:00:30]} 9. Bxb7 {[%emt 0:00:30]} Bb4+ {[%emt 0:00:30]} 10. Bd2 {[%emt 0:00:30]} Bxd2+ {[%emt 0:00:30]} 11. Qxd2 {[%emt 0:00:30]} N8d7 {[%emt 0:00:30]} 12. Bxa8 {[%emt 0:00:30]} Qxa8 {[%emt 0:00:30]} 13. O-O {[%emt 0:00:30]} O-O {[%emt 0:00:30]} 14. dxe5 {[%emt 0:00:30]} Nxe5 {[%emt 0:00:30]} 15. b3 {[%emt 0:00:30]} f5 {[%emt 0:00:30]} 16. f4 {[%emt 0:00:30]} Nc6 {[%emt 0:00:30]} 17. Nc3 {[%emt 0:00:30]} Rd8 {[%emt 0:00:30]} 18. Qe3 {[%emt 0:00:30]} Nd4 {[%emt 0:00:30]} 19. c5 {[%emt 0:00:30]} 1-0

[Event "FIN-ch 2019"]
[Site "Helsinki"]
[Date "2019.06.18"]
[Round "9.7"]
[White "Tiitta, Sauli"]
[Black "Jarvenpaa, Jari"]
[Result "0-1"]
[ECO "D00"]
[WhiteElo "2214"]
[BlackElo "2204"]
[Annotator "NA"]
[PlyCount "80"]
[EventDate "2019.06.10"]
[EventType "swiss"]
[EventCountry "FIN"]
[SourceTitle "playchess.com"]
[Source "ChessBase"]
[SourceQuality "1"]
[TimeControl "40/5400+30:1800+30"]

1. d4 {[%emt 0:06:32]} Nf6 {[%emt 0:01:46]} 2. Nc3 {[%emt 0:02:20]} d5 {[%emt 0:00:51]} 3. Bf4 {[%emt 0:00:49]} c6 {[%emt 0:03:42]} 4. e3 {[%emt 0:00:36]} g6 {[%emt 0:01:41]} 5. Be2 {[%emt 0:07:36]} Bg7 {[%emt 0:01:06]} 6. h4 {[%emt 0:00:16]} h6 {[%emt 0:01:18]} 7. Nf3 {[%emt 0:02:57]} Bg4 {[%emt 0:03:37]} 8. Ne5 {[%emt 0:03:12]} Bxe2 {[%emt 0:01:35]} 9. Qxe2 {[%emt 0:00:04]} Nbd7 {[%emt 0:05:39]} 10. O-O-O {[%emt 0:01:40]} e6 {[%emt 0:09:03]} 11. f3 {[%emt 0:08:34]} Qe7 {[%emt 0:07:11]} 12. g4 {[%emt 1:01:24]} Nb6 {[%emt 0:02:06]} 13. Qh2 {[%emt 0:00:00]} O-O-O {[%emt 0:06:55]} 14. Qe2 {[%emt 0:00:00]} Ne8 {[%emt 0:02:33]} 15. e4 {[%emt 0:00:00]} Nc7 {[%emt 0:12:50]} 16. Kb1 {[%emt 0:00:00]} Rhe8 {[%emt 0:07:23]} 17. a3 {[%emt 0:00:00]} Nd7 {[%emt 0:06:14]} 18. Nxd7 {[%emt 0:00:00]} Rxd7 {[%emt 0:01:09]} 19. Qe3 {[%emt 0:00:00]} dxe4 {[%emt 0:07:29]} 20. fxe4 {[%emt 0:00:00]} Red8 {[%emt 0:03:06]} 21. e5 {[%emt 0:00:00]} Kb8 {[%emt 0:02:23]} 22. Qf2 {[%emt 0:00:00]} Nd5 {[%emt 0:01:40]} 23. Na4 {[%emt 0:00:00]} Nxf4 {[%emt 0:00:55]} 24. Qxf4 {[%emt 0:00:00]} b6 {[%emt 0:01:03]} 25. Qe4 {[%emt 0:00:00]} c5 {[%emt 0:01:54]} 26. c3 {[%emt 0:00:00]} Rd5 {[%emt 0:00:35]} 27. Rhf1 {[%emt 0:00:00]} Qd7 {[%emt 0:00:37]} 28. b3 {[%emt 0:00:00]} cxd4 {[%emt 0:02:59]} 29. c4 {[%emt 0:00:00]} Rxe5 {[%emt 0:00:51]} 30. Qf4 {[%emt 0:00:00]} f6 {[%emt 0:01:11]} 31. Nc3 {[%emt 0:00:00]} g5 {[%emt 0:01:04]} 32. Qh2 {[%emt 0:00:00]} Qb7 {[%emt 0:01:48]} 33. Rfe1 {[%emt 0:00:00]} Qf3 {[%emt 0:00:47]} 34. Rxe5 {[%emt 0:00:00]} fxe5 {[%emt 0:00:14]} 35. Qc2 {[%emt 0:00:00]} Kc8 {[%emt 0:01:29]} 36. Nb5 {[%emt 0:00:00]} d3 {[%emt 0:00:36]} 37. Qd2 {[%emt 0:00:00]} e4 {[%emt 0:00:36]} 38. Re1 {[%emt 0:00:00]} a6 {[%emt 0:00:26]} 39. Nc3 {[%emt 0:00:00]} Bxc3 {[%emt 0:00:17]} 40. Qxc3 {[%emt 0:00:00]} d2 {[%emt 0:00:17]} 0-1